lending/lending_fUSD_20251124
["ID","MTS","AMOUNT","RATE_DAILY","PERIOD"]
[394799272,1763963441176,-500.0,0.00037351,8]
[394799273,1763963441186,-510.41952583,0.00037351,8]
[394799274,1763963441196,-500.0,0.00037351,8]
[394799275,1763963441206,-552.70807661,0.00037351,8]
[394799276,1763963441215,-624.47024942,0.00037351,8]
[394799277,1763963441225,-500.0,0.00037351,8]
[394799278,1763963441234,-1203.75,0.00037351,14]
[394799279,1763963441243,-500.0,0.00037351,8]
[394799280,1763963441252,-500.0,0.00037351,8]
[394799281,1763963441261,-500.0,0.00037351,8]
[394799282,1763963441270,-290.12510166,0.00037351,8]
[394799283,1763963441283,-569.93718475,0.00037351,8]
[394799284,1763963441293,-504.25965622,0.00037351,8]
[394799285,1763963441302,-506.36327147,0.00037351,8]
[394799286,1763963441312,-621.20164704,0.00037351,8]
[394799287,1763963441322,-500.0,0.00037351,8]
[394799288,1763963441332,-380.43405604,0.00037351,8]
[394799289,1763963441341,-516.04581981,0.00037351,8]
[394799290,1763963441350,-539.72126625,0.00037351,8]
[394799291,1763963441365,-500.0,0.00037351,8]
[394799292,1763963441375,-500.0,0.00037351,8]
[394799293,1763963441385,-500.0,0.00037351,8]
[394799294,1763963441394,-500.0,0.00037351,8]
[394799295,1763963441404,-500.0,0.00037351,15]
[394799296,1763963441415,-500.0,0.00037351,8]
[394799297,1763963441424,-502.40793893,0.00037351,8]
[394799298,1763963441434,-541.95400307,0.00037351,8]
[394799299,1763963441443,-500.0,0.00037351,8]
[394799300,1763963441453,-500.0,0.00037351,8]
[394799301,1763963441462,-473.41508866,0.00037351,8]
[394799302,1763963441471,-500.0,0.00037351,8]
[394799303,1763963441480,-500.00127748,0.00037351,8]
[394799304,1763963441489,-500.0,0.00037351,8]
[394799305,1763963441498,-206.79501577,0.00037351,15]
[394799306,1763963441507,-536.596549,0.00037351,8]
[394799307,1763963441517,-500.0,0.00037352,8]
[394799308,1763963441526,-502.31913605,0.00037352,8]
[394799309,1763963441535,-500.0,0.00037352,8]
[394799310,1763963441544,-503.02297782,0.00037352,8]
[394799311,1763963441554,-500.0,0.00037352,8]
[394799312,1763963441563,-624.9708388,0.00037352,2]
[394799313,1763963441573,-507.65565827,0.00037352,8]
[394799314,1763963441582,-500.0,0.00037352,8]
[394799315,1763963441591,-500.0,0.00037352,8]
[394799316,1763963441600,-500.0,0.00037352,8]
[394799317,1763963441609,-508.52903752,0.00037352,8]
[394799318,1763963441621,-531.97395474,0.00037352,8]
[394799319,1763963441630,-504.21141354,0.00037352,8]
[394799320,1763963441639,-504.25521357,0.00037352,8]
[394799321,1763963441649,-589.81712656,0.00037352,8]
[394799322,1763963441659,-500.0,0.00037352,8]
[394799323,1763963441668,-500.0,0.00037352,8]
[394799324,1763963441678,-500.0,0.00037352,8]
[394799325,1763963441688,-500.32295156,0.00037352,8]
[394799326,1763963441697,-500.0,0.00037352,8]
[394799327,1763963441706,-500.0,0.00037352,8]
[394799328,1763963441715,-507.33994248,0.00037352,8]
[394799329,1763963441725,-510.29605095,0.00037352,8]
[394799330,1763963441735,-345.66740592,0.00037352,8]
[394799331,1763963441748,-500.0,0.00037352,8]
[394799332,1763963441758,-505.23640007,0.00037352,8]
[394799333,1763963441767,-500.0,0.00037352,8]
[394799334,1763963441776,-500.0,0.00037352,8]
[394799335,1763963441786,-500.0,0.00037352,8]
[394799336,1763963441795,-504.32017997,0.00037352,8]
[394799337,1763963441804,-510.96685744,0.00037352,8]
[394799338,1763963441813,-502.25601165,0.00037352,8]
[394799339,1763963441822,-500.0,0.00037352,8]
[394799340,1763963441831,-500.0,0.00037352,8]
[394799341,1763963441840,-500.0,0.00037352,8]
[394799342,1763963441849,-500.0,0.00037352,8]
[394799343,1763963441859,-502.77505296,0.00037352,8]
[394799344,1763963441869,-514.63095914,0.00037352,8]
[394799345,1763963441879,-180.67345719,0.00037352,8]
[394799346,1763963441890,-500.0,0.00037352,8]
[394799347,1763963441899,-500.0,0.00037352,8]
[394799348,1763963441909,-500.0,0.00037352,8]
[394799349,1763963441918,-500.0,0.00037352,8]
[394799350,1763963441927,-500.0,0.00037352,7]
[394799351,1763963441937,-210.9936635,0.00037352,8]
[394799352,1763963441948,-504.81785043,0.00037352,8]
[394799353,1763963441958,-509.55913161,0.00037352,8]
[394799354,1763963441967,-369.93461801,0.00037352,8]
[394799355,1763963441977,-500.0,0.00037352,8]
[394799356,1763963441987,-500.0,0.00037352,8]
[394799357,1763963441997,-508.3318158,0.00037352,8]
[394799358,1763963442007,-500.0,0.00037352,2]
[394799359,1763963442016,-285.25619661,0.00037352,8]
[394799360,1763963442026,-500.0,0.00037352,8]
[394799361,1763963442035,-442.60331127,0.00037352,8]
[394799362,1763963442045,-528.64458268,0.00037352,8]
[394799363,1763963442054,-349.0861055,0.00037352,8]
[394799364,1763963442063,-505.27838094,0.00037352,8]
[394799365,1763963442072,-500.0,0.00037352,8]
[394799366,1763963442082,-500.0,0.00037352,8]
[394799367,1763963442093,-500.0,0.00037352,8]
[394799368,1763963442104,-538.01014075,0.00037352,8]
[394799369,1763963442113,-500.0,0.00037352,8]
[394799370,1763963442122,-500.0,0.00037352,8]
[394799371,1763963442131,-515.68,0.00037352,8]
[394799372,1763963442140,-533.8784336,0.00037352,8]
[394799373,1763963442150,-500.0,0.00037352,8]
[394799374,1763963442159,-501.34950688,0.00037352,8]
[394799375,1763963442169,-300.0,0.00037352,2]
[394799376,1763963442178,-500.0,0.00037352,8]
[394799377,1763963442187,-502.30973445,0.00037352,8]
[394799378,1763963442196,-500.0,0.00037352,8]
[394799379,1763963442206,-500.0,0.00037352,8]
[394799380,1763963442215,-571.87187682,0.00037352,8]
[394799381,1763963442225,-630.90518977,0.00037352,8]
[394799382,1763963442235,-500.0,0.00037352,8]
[394799383,1763963442244,-500.0,0.00037352,8]
[394799384,1763963442253,-531.67014476,0.00037352,8]
[394799385,1763963442262,-500.0,0.00037352,8]
[394799386,1763963442272,-511.80505101,0.00037352,8]
[394799387,1763963442283,-527.99711767,0.00037352,8]
[394799388,1763963442294,-500.0,0.00037352,8]
[394799389,1763963442303,-500.0,0.00037352,8]
[394799390,1763963442313,-500.0,0.00037352,8]
[394799391,1763963442322,-500.0,0.00037352,8]
[394799392,1763963442333,-500.0,0.00037352,8]
[394799393,1763963442343,-500.0,0.00037352,8]
[394799394,1763963442352,-511.60328898,0.00037352,8]
[394799395,1763963442362,-500.0,0.00037352,8]
[394799396,1763963442371,-548.6945929,0.00037352,8]
[394799397,1763963442382,-500.0,0.00037352,8]
[394799398,1763963442392,-151.20124816,0.00037352,8]
[394799399,1763963442401,-505.1518702,0.00037352,8]
[394799400,1763963442411,-550.82248001,0.00037352,8]
[394799401,1763963442420,-500.0,0.00037352,8]
[394799402,1763963442430,-500.0,0.00037352,8]
[394799403,1763963442439,-502.00886335,0.00037352,8]
[394799404,1763963442448,-502.89341695,0.00037352,8]
[394799405,1763963442458,-500.0,0.00037352,8]
[394799406,1763963442467,-622.54296116,0.00037352,8]
[394799407,1763963442477,-236.26450119,0.00037352,8]
[394799408,1763963442487,-500.0,0.00037352,8]
[394799409,1763963442496,-500.0,0.00037352,8]
[394799410,1763963442505,-500.0,0.00037352,8]
[394799411,1763963442515,-500.0,0.00037352,8]
[394799412,1763963442524,-607.62440489,0.00037352,8]
[394799413,1763963442534,-502.51819949,0.00037352,8]
[394799414,1763963442544,-500.0,0.00037352,8]
[394799415,1763963442553,-500.0,0.00037352,8]
[394799416,1763963442563,-500.0,0.00037352,8]
[394799417,1763963442572,-639.23717673,0.00037352,8]
[394799418,1763963442582,-501.38045235,0.00037352,8]
[394799419,1763963442591,-564.49765088,0.00037352,8]
[394799420,1763963442601,-500.0,0.00037352,8]
[394799421,1763963442611,-500.0,0.00037352,8]
[394799422,1763963442620,-500.0,0.00037352,8]
[394799423,1763963442630,-500.0,0.00037352,8]
[394799424,1763963442640,-507.096263,0.00037352,8]
[394799425,1763963442649,-500.0,0.00037352,8]
[394799426,1763963442658,-500.0,0.00037352,8]
[394799427,1763963442667,-500.0,0.00037352,8]
[394799428,1763963442676,-500.0,0.00037352,8]
[394799429,1763963442685,-500.0,0.00037352,8]
[394799430,1763963442703,-500.0,0.00037352,8]
[394799431,1763963442713,-531.78231255,0.00037352,8]
[394799432,1763963442722,-500.0,0.00037352,8]
[394799433,1763963442731,-544.20769375,0.00037352,8]
[394799434,1763963442740,-500.0,0.00037352,8]
[394799435,1763963442750,-500.0,0.00037352,8]
[394799436,1763963442759,-500.0,0.00037352,8]
[394799437,1763963442768,-500.0,0.00037352,8]
[394799438,1763963442778,-500.0,0.00037352,8]
[394799439,1763963442787,-500.0,0.00037352,8]
[394799440,1763963442798,-500.0,0.00037352,8]
[394799441,1763963442807,-500.0,0.00037352,8]
[394799442,1763963442817,-500.0,0.00037352,8]
[394799443,1763963442826,-500.0,0.00037352,8]
[394799444,1763963442835,-500.0,0.00037352,8]
[394799445,1763963442845,-500.0,0.00037352,8]
[394799446,1763963442855,-500.0,0.00037352,8]
[394799447,1763963442864,-1267.37,0.00037352,8]
[394799448,1763963442873,-546.72327003,0.00037352,8]
[394799449,1763963442883,-560.06196927,0.00037352,8]
[394799450,1763963442893,-500.0,0.00037352,8]
[394799451,1763963442902,-500.0,0.00037352,8]
[394799452,1763963442912,-510.19976485,0.00037352,8]
[394799453,1763963442921,-519.98044661,0.00037352,8]
[394799454,1763963442930,-500.0,0.00037352,8]
[394799455,1763963442939,-535.64647924,0.00037352,8]
[394799456,1763963442949,-505.52944894,0.00037352,8]
[394799457,1763963442958,-500.0,0.00037352,8]
[394799458,1763963442967,-500.0,0.00037352,8]
[394799459,1763963442978,-500.0,0.00037352,8]
[394799460,1763963442987,-500.0,0.00037352,8]
[394799461,1763963442997,-537.4478993,0.00037352,8]
[394799462,1763963443006,-700.0,0.00037352,120]
[394799463,1763963443017,-510.60200988,0.00037352,8]
[394799465,1763963443026,-500.0,0.00037352,8]
[394799466,1763963443035,-517.48571489,0.00037352,8]
[394799467,1763963443045,-504.87859737,0.00037352,8]
[394799468,1763963443054,-503.7460562,0.00037352,8]
[394799469,1763963443065,-503.31968,0.00037352,8]
[394799471,1763963443075,-500.0,0.00037352,8]
[394799472,1763963443085,-500.0,0.00037352,8]
[394799473,1763963443094,-500.0,0.00037352,8]
[394799474,1763963443103,-513.19689432,0.00037352,8]
[394799475,1763963443113,-500.0,0.00037352,8]
[394799476,1763963443122,-539.59869772,0.00037352,8]
[394799477,1763963443132,-500.0,0.00037352,8]
[394799479,1763963443143,-506.31850404,0.00037352,8]
[394799481,1763963443153,-500.0,0.00037352,8]
[394799484,1763963443408,-506.26065439,0.00037352,8]
[394799485,1763963443419,-504.82518202,0.00037352,8]
[394799486,1763963443429,-515.15498482,0.00037352,8]
[394799487,1763963443439,-501.08748662,0.00037352,8]
[394799488,1763963443448,-500.96274646,0.00037352,8]
[394799489,1763963443458,-500.0,0.00037352,8]
[394799490,1763963443467,-506.6856091,0.00037352,8]
[394799491,1763963443477,-504.22351907,0.00037352,8]
[394799492,1763963443487,-500.0,0.00037352,8]
[394799493,1763963443496,-506.86377156,0.00037352,8]
[394799494,1763963443506,-532.18599475,0.00037352,8]
[394799495,1763963443516,-506.42909579,0.00037352,8]
[394799496,1763963443526,-500.0,0.00037352,8]
[394799497,1763963443535,-506.21646347,0.00037352,8]
[394799498,1763963443548,-322.53272953,0.00037352,8]
[394799499,1763963443559,-500.0,0.00037352,8]
[394799500,1763963443569,-527.61750027,0.00037352,8]
[394799501,1763963443579,-500.0,0.00037352,8]
[394799502,1763963443589,-500.0,0.00037352,8]
[394799503,1763963443599,-500.0,0.00037352,8]
[394799504,1763963443609,-504.91098871,0.00037352,8]
[394799505,1763963443619,-500.0,0.00037352,8]
[394799506,1763963443629,-503.9887768,0.00037352,8]
[394799507,1763963443638,-507.6345797,0.00037352,8]
[394799508,1763963443648,-500.0,0.00037352,8]
[394799509,1763963443658,-502.23566281,0.00037352,8]
[394799510,1763963443668,-500.0,0.00037352,8]
[394799511,1763963443678,-500.0,0.00037352,8]
[394799512,1763963443688,-507.2598299,0.00037352,8]
[394799513,1763963443698,-81.41720696,0.00037352,8]
[394799514,1763963444321,-500.0,0.00037151,15]
[394799515,1763963444331,-21.78653104,0.00037151,15]
[394799516,1763963444343,-300.58908151,0.00037151,15]
[394799544,1763963445681,-177.62438745,0.00037151,15]
[394799545,1763963445692,-173.98865814,0.00037151,15]
[394799546,1763963445702,-83.86301906,0.00037351,8]
[394799547,1763963445714,-269.99999995,0.00037351,8]
[394799580,1763964631583,-1333.58576814,0.00033471,2]
[394799581,1763964631720,-1446.81423186,0.00033471,2]
[394799582,1763964631731,-400.0,0.00034914,2]
[394799583,1763964631740,-150.0,0.00034915,7]
[394799584,1763964631751,-150.0,0.00034915,7]
[394799585,1763964631761,-150.0,0.00034915,7]
[394799586,1763964631771,-150.0,0.00034915,7]
[394799587,1763964631780,-150.0,0.00034915,7]
[394799588,1763964631790,-151.82906016,0.00034915,7]
[394799589,1763964631800,-152.10113013,0.00034915,7]
[394799590,1763964631809,-150.00000001,0.00034915,7]
[394799591,1763964631818,-200.0,0.00035477,2]
[394799592,1763964631828,-160.73,0.00035841,30]
[394799593,1763964631838,-999.0,0.00035887,3]
[394799594,1763964631847,-153.69,0.00035909,2]
[394799595,1763964631857,-697.65,0.00036091,2]
[394799596,1763964631866,-156.17328582,0.000361,75]
[394799597,1763964631875,-250.0,0.00036117,2]
[394799598,1763964631885,-1659.0,0.000362,2]
[394799599,1763964631894,-404.89,0.00036243,2]
[394799600,1763964631904,-1176.66,0.00036248,2]
[394799601,1763964631914,-2751.0,0.00036317,120]
[394799603,1763964631923,-7372.02,0.00036317,120]
[394799605,1763964631933,-7372.02,0.00036345,120]
[394799606,1763964631942,-7372.02,0.00036374,120]
[394799607,1763964631952,-332.86,0.00036378,2]
[394799608,1763964631961,-260.92,0.00036391,2]
[394799609,1763964631970,-7372.02,0.00036405,120]
[394799611,1763964631979,-7372.02,0.00036437,120]
[394799612,1763964631988,-1000.0,0.00036438,2]
[394799613,1763964631998,-7372.02,0.00036472,120]
[394799614,1763964632009,-1000.0,0.00036472,2]
[394799615,1763964632019,-7372.02,0.00036508,120]
[394799616,1763964632029,-6851.12844875,0.00036547,120]
[394799618,1763964632040,-520.89155125,0.00036547,120]
[394799619,1763964632050,-150.0,0.00036578,2]
[394799620,1763964632060,-7372.02,0.00036588,120]
[394799621,1763964632069,-4364.10890413,0.00036633,120]
[394799622,1763964632080,-540.47841241,0.00036633,120]
[394799625,1763964637583,-2467.43268346,0.00036633,120]
[394799626,1763964637593,-150.0,0.00036678,2]
[394799627,1763964637603,-7372.02,0.00036681,120]
[394799628,1763964637613,-501.01700896,0.00036718,2]
[394799629,1763964637623,-500.0,0.00036718,8]
[394799630,1763964637634,-500.0,0.00036718,8]
[394799631,1763964637644,-500.0,0.00036718,8]
[394799632,1763964637653,-43009.53030758,0.00036719,2]
[394799638,1763964639852,-3289.53493106,0.00036719,2]
[394799657,1763965186062,150.0,0.00017795,2]
[394799658,1763965186087,33.34,0.00017795,2]
[394799679,1763965613207,366.66,0.000162,5]
[394799680,1763965613235,3400.0,0.000162,5]
[394799681,1763965613266,3400.0,0.000162,5]
[394799682,1763965613296,3400.0,0.000162,5]
[394799683,1763965613323,2703.2267775,0.000162,5]
[394799684,1763965613348,2703.2267775,0.000162,5]
[394799685,1763965613387,2703.2267775,0.000162,5]
[394799686,1763965613416,2703.2267775,0.000162,5]
[394799687,1763965613443,2703.2267775,0.000162,5]
[394799688,1763965613469,2703.2267775,0.000162,5]
[394799689,1763965613494,2703.2267775,0.000162,5]
[394799690,1763965613519,2703.2267775,0.000162,5]
[394799691,1763965613544,2703.2267775,0.000162,5]
[394799692,1763965613569,2703.2267775,0.000162,5]
[394799693,1763965623933,-196.98952352,0.000162,5]
[394799744,1763965831820,-300.0,0.00016199,2]
[394799746,1763965831830,-1200.0,0.00016199,2]
[394799747,1763965831839,-422.19742957,0.000162,5]
[394799749,1763965831879,-583.63247807,0.000162,5]
[394799755,1763965831942,-482.13,0.000162,5]
[394799756,1763965831953,-347.489999,0.000162,5]
[394799757,1763965831999,-747.8952764,0.000162,5]
[394799758,1763965832059,-1006.51056091,0.000162,5]
[394799760,1763965832070,-501.07129066,0.000162,5]
[394799771,1763965837793,-6439.96907163,0.000162,5]
[394799772,1763965837804,-288.75296258,0.000162,5]
[394799773,1763965837853,-19600.0,0.000162,5]
[394799774,1763965837865,-272.99999997,0.000162,5]
[394799775,1763965837876,-984.52589463,0.000162,5]
[394799776,1763965837888,-3108.0,0.000162,5]
[394799777,1763965838040,-2366.28773806,0.000162,5]
[394799778,1763965838051,-195.0,0.0001701,2]
[394799779,1763965838061,-420.0,0.00017707,2]
[394799780,1763965838071,-1065.0,0.00017796,2]
[394799781,1763965838081,-250.0,0.00017819,2]
[394799782,1763965838092,-250.0,0.0001782,2]
[394799783,1763965838102,-410.60297135,0.0001782,2]
[394799784,1763965838111,-195.0,0.0001782,2]
[394799785,1763965838121,-250.0,0.0001782,2]
[394799786,1763965838131,-210.99878442,0.00018942,2]
[394799787,1763965838140,-339.01266589,0.00019405,2]
[394799788,1763965838149,-220.58613883,0.000215,2]
[394799789,1763965838159,-339.01266589,0.000219,2]
[394799790,1763965838168,-4117.49448259,0.00022,2]
[394799791,1763965838177,-160.97,0.00022,2]
[394799792,1763965838187,-254.37812853,0.00022,2]
[394799793,1763965838196,-250.0,0.0002268,2]
[394799794,1763965838206,-414.0,0.00024652,2]
[394799795,1763965838215,-248.41346353,0.00024701,2]
[394799796,1763965838224,-183.34,0.00026692,2]
[394799797,1763965838234,-1320.4301677,0.0002739,2]
[394799798,1763965838243,-152.62072345,0.00028297,120]
[394799799,1763965838252,-5266.99,0.00031703,2]
[394799800,1763965838261,-943.75715549,0.00032,120]
[394799801,1763965838271,-152.41800308,0.00033,2]
[394799802,1763965838281,-166.66,0.00034028,30]
[394799804,1763965838291,-242.0,0.00034073,2]
[394799806,1763965838301,-219.84632763,0.00034299,7]
[394799808,1763965838310,-152.93167974,0.00034299,7]
[394799810,1763965838319,-166.66,0.00034745,30]
[394799812,1763965838330,-1000.0,0.00034872,2]
[394799814,1763965838340,-6528.5314815,0.000349,2]
[394799816,1763965838350,-1000.0,0.00034914,3]
[394799818,1763965838360,-168.215,0.00034973,40]
[394799820,1763965838371,-9999.99,0.00034973,2]
[394799822,1763965838381,-18814.08,0.00034973,10]
[394799824,1763965838391,-8467.64,0.00034973,2]
[394799826,1763965838401,-3974.64,0.00034973,2]
[394799828,1763965838411,-500.0,0.00034973,5]
[394799830,1763965838421,-500.0,0.00034973,2]
[394799832,1763965838430,-502.16141848,0.00034973,5]
[394799834,1763965838439,-500.0,0.00034973,5]
[394799836,1763965838449,-331.58146339,0.00034973,5]
[394799838,1763965838458,-230.55253449,0.00034973,5]
[394799840,1763965838468,-500.0,0.00034973,5]
[394799842,1763965838477,-500.0,0.00034973,5]
[394799844,1763965838487,-984.722,0.00034973,40]
[394799846,1763965838497,-527.74,0.0003499,3]
[394799848,1763965838507,-1002.1511807,0.00034999,2]
[394799850,1763965838516,-2945.91122771,0.00035,30]
[394799869,1763965838723,-2809.33159635,0.00035,30]
[394799870,1763965839897,-4244.75717594,0.00035,30]
[394799871,1763965839907,-10000.0,0.00035,30]
[394799872,1763965839917,-20000.0,0.00035,30]
[394799873,1763965839927,-20000.0,0.00035,30]
[394799874,1763965839936,-20000.0,0.00035,30]
[394799875,1763965839946,-20000.0,0.00035,30]
[394799876,1763965839956,-805.86710335,0.00035,30]
[394799877,1763965839976,-19194.13289665,0.00035,30]
[394799878,1763965839986,-5822.03,0.00035103,2]
[394799879,1763965839995,-166.66,0.00035461,30]
[394799880,1763965840005,-787.33780064,0.00035521,5]
[394799881,1763965840015,-641.03219292,0.00035521,2]
[394799882,1763965840024,-1000.0,0.00035521,5]
[394799883,1763965840034,-5000.0,0.00035528,2]
[394799884,1763965840045,-4453.73,0.00035546,2]
[394799885,1763965840055,-6528.53148147,0.00035567,2]
[394799886,1763965840065,-183.34,0.00035589,2]
[394799887,1763965840075,-500.0,0.00035616,8]
[394799888,1763965840084,-505.05962795,0.00035616,8]
[394799889,1763965840094,-500.0,0.00035616,8]
[394799890,1763965840104,-515.17260612,0.00035616,8]
[394799891,1763965840113,-500.0,0.00035616,8]
[394799892,1763965840124,-504.88999986,0.00035616,8]
[394799893,1763965840134,-514.3,0.00035624,2]
[394799894,1763965840144,-615.73,0.00035652,120]
[394799895,1763965840154,-1000.0,0.0003584,3]
[394799896,1763965840163,-1000.0,0.00035886,3]
[394799897,1763965840174,-610.99,0.0003589,8]
[394799898,1763965840184,-500.0,0.0003589,8]
[394799899,1763965840193,-177.6,0.0003589,2]
[394799900,1763965840202,-551.17,0.00035978,2]
[394799901,1763965840212,-551.17,0.00035978,2]
[394799902,1763965840221,-300.0,0.00035978,2]
[394799903,1763965840230,-339.42,0.00035978,2]
[394799904,1763965840239,-550.53,0.00035978,2]
[394799905,1763965840249,-169.75,0.00035978,2]
[394799906,1763965840258,-834.8,0.00035978,2]
[394799907,1763965840268,-834.8,0.00035978,2]
[394799908,1763965840278,-179.83563876,0.00036,120]
[394799909,1763965840287,-261.4838578,0.00036065,2]
[394799910,1763965840297,-746.33238916,0.00036068,5]
[394799911,1763965840307,-550.91,0.00036082,2]
[394799912,1763965840316,-1000.0,0.00036099,3]
[394799913,1763965840325,-500.0,0.00036164,8]
[394799914,1763965840335,-166.66,0.00036177,30]
[394799915,1763965840344,-1501.34,0.00036219,2]
[394799916,1763965840354,-6528.53148147,0.00036233,2]
[394799917,1763965840363,-929.97063,0.0003631,2]
[394799918,1763965840372,-150.0,0.00036329,2]
[394799919,1763965840381,-500.0,0.00036438,8]
[394799920,1763965840390,-524.34016491,0.00036468,8]
[394799921,1763965840399,-504.97,0.00036468,8]
[394799922,1763965840408,-500.0,0.00036468,8]
[394799923,1763965840417,-500.0,0.00036468,8]
[394799924,1763965840426,-500.0,0.00036468,8]
[394799925,1763965840435,-500.0,0.00036468,8]
[394799926,1763965840445,-500.0,0.00036468,8]
[394799927,1763965840454,-500.0,0.00036468,8]
[394799928,1763965840463,-515.74825733,0.00036468,8]
[394799929,1763965840472,-500.0,0.00036468,8]
[394799930,1763965840482,-529.30461804,0.00036468,8]
[394799931,1763965840491,-500.0,0.00036468,8]
[394799932,1763965840500,-500.0,0.00036468,8]
[394799933,1763965840509,-506.47890686,0.00036468,8]
[394799934,1763965840519,-3301.9795342,0.00036469,2]
[394799935,1763965840530,-10946.7706318,0.00036469,2]
[394799936,1763965840541,-1046.0,0.000365,15]
[394799937,1763965840551,-1000.0,0.000365,14]
[394799939,1763965840560,-1000.0,0.000365,13]
[394799941,1763965840569,-1000.0,0.000365,12]
[394799943,1763965840578,-1005.0,0.000365,12]
[394799944,1763965840588,-1006.0,0.000365,8]
[394799945,1763965840597,-202.60254576,0.00036612,2]
[394799946,1763965840606,-2500.0,0.00036617,2]
[394799947,1763965840616,-6636.89353576,0.00036617,2]
[394799948,1763965840625,-193.83373495,0.00036618,15]
[394799949,1763965840635,-5000.0,0.00036618,30]
[394799950,1763965840644,-1000.0,0.0003668,3]
[394799951,1763965840653,-436.94890871,0.00036698,4]
[394799952,1763965840662,-873.89781742,0.00036706,4]
[394799953,1763965840671,-2621.69345226,0.00036707,4]
[394799954,1763965840681,-4453.73,0.00036707,2]
[394799955,1763965840690,-150.29343235,0.00036708,8]
[394799956,1763965840700,-500.0,0.00036708,8]
[394799957,1763965840709,-198.4071392,0.00036708,8]
[394799958,1763965840719,-500.0,0.00036708,8]
[394799959,1763965840728,-504.22252802,0.00036708,8]
[394799960,1763965840737,-584.60044389,0.00036708,8]
[394799961,1763965840746,-500.0,0.00036708,8]
[394799962,1763965840755,-500.0,0.00036708,8]
[394799963,1763965840765,-500.0,0.00036708,8]
[394799964,1763965840775,-500.0,0.00036708,8]
[394799965,1763965840784,-500.0,0.00036708,8]
[394799966,1763965840793,-4333.78,0.00036708,8]
[394799967,1763965840802,-521.2179233,0.00036708,8]
[394799968,1763965840811,-500.0,0.00036708,8]
[394799969,1763965840821,-500.0,0.00036708,8]
[394799970,1763965840830,-500.0,0.00036708,8]
[394799971,1763965840839,-532.28,0.00036708,8]
[394799972,1763965840848,-500.0,0.00036708,8]
[394799973,1763965840858,-500.0,0.00036708,8]
[394799974,1763965840867,-500.0,0.00036708,8]
[394799975,1763965840877,-500.0,0.00036708,8]
[394799976,1763965840887,-500.0,0.00036708,8]
[394799977,1763965840897,-500.0,0.00036708,8]
[394799978,1763965840907,-2095.5,0.00036708,8]
[394799979,1763965840916,-500.0,0.00036708,8]
[394799980,1763965840926,-500.0,0.00036708,8]
[394799981,1763965840935,-500.0,0.00036708,8]
[394799982,1763965840944,-586.44,0.00036708,8]
[394799983,1763965840954,-500.0,0.00036708,8]
[394799984,1763965840963,-500.0,0.00036708,8]
[394799985,1763965840977,-500.0,0.00036708,8]
[394799986,1763965840986,-500.0,0.00036708,8]
[394799987,1763965840996,-500.0,0.00036708,8]
[394799988,1763965841005,-500.0,0.00036708,8]
[394799989,1763965841016,-500.0,0.00036708,8]
[394799990,1763965841026,-500.0,0.00036708,8]
[394799991,1763965841035,-500.0,0.00036708,8]
[394799992,1763965841045,-500.0,0.00036708,8]
[394799993,1763965841056,-500.0,0.00036708,8]
[394799994,1763965841065,-500.0,0.00036708,8]
[394799995,1763965841075,-635.19004123,0.00036708,8]
[394799996,1763965841084,-563.76936846,0.00036708,8]
[394799997,1763965841093,-624.47024942,0.00036708,8]
[394799998,1763965841104,-290.12510166,0.00036708,8]